lending/lending_fUSD_20251124
["ID","MTS","AMOUNT","RATE_DAILY","PERIOD"]
[394856913,1764023440219,-3561.99998,0.000155,2]
[394856916,1764023440247,-347.053942,0.000155,2]
[394856917,1764023440258,-502.7286811,0.000155,2]
[394856918,1764023440268,-926.039998,0.000155,2]
[394856923,1764023444589,-759.87369163,0.000155,2]
[394856924,1764023444600,-3265.8690525,0.000155,2]
[394856925,1764023445601,538.40207526,0.00015436,2]
[394856931,1764023445893,-271.3,0.000155,2]
[394856932,1764023445904,-927.2436702,0.000155,2]
[394856933,1764023445914,-1906.0,0.000155,2]
[394856934,1764023445953,-1833.08607615,0.000155,2]
[394856937,1764023477559,169.77942474,0.00015436,2]
[394856938,1764023507228,-1425.486,0.0001519,2]
[394856939,1764023507258,-175.824,0.0001519,2]
[394856940,1764023565205,501.93,0.00013699,2]
[394856941,1764023643651,-1852.42,0.00015215,2]
[394857345,1764023814446,3175.64,0.00015184,2]
[394857346,1764023821152,2751.0,0.00015184,2]
[394857347,1764023846322,1000.0,0.00015194,2]
[394857348,1764023881772,150.0,0.00015105,2]
[394857349,1764023906929,601.32,0.00015077,2]
[394857351,1764023934510,250.0,0.00015077,2]
[394857367,1764023967259,150.0,0.00015077,2]
[394857368,1764023967506,150.0,0.00015077,120]
[394857377,1764024046362,2450.59,7.572e-05,2]
[394857378,1764024046567,2450.59,7.971e-05,2]
[394857379,1764024047027,2450.59,8.369e-05,2]
[394857380,1764024047254,2450.59,8.768e-05,2]
[394857381,1764024047455,197.65,9.166e-05,2]
[394857382,1764024047480,2252.94,9.166e-05,2]
[394857383,1764024047667,2450.59,9.565e-05,2]
[394857384,1764024047868,2450.59,9.964e-05,2]
[394857385,1764024048072,2450.59,0.00010362,2]
[394857386,1764024048281,395.3,0.00010761,2]
[394857387,1764024048306,2055.29,0.00010761,2]
[394857388,1764024048521,2450.59,0.00011159,2]
[394857389,1764024048796,2450.59,0.00011558,2]
[394857390,1764024049008,2450.59,0.00011956,2]
[394857391,1764024049215,592.95,0.00012355,2]
[394857392,1764024049240,1857.64,0.00012355,2]
[394857393,1764024049427,2450.59,0.00012753,2]
[394857394,1764024049659,2450.59,0.00013152,2]
[394857395,1764024050076,2450.59,0.0001355,2]
[394857396,1764024050280,790.6,0.00013949,2]
[394857397,1764024050307,1659.99,0.00013949,2]
[394857398,1764024050497,2450.59,0.00014348,2]
[394857399,1764024050699,2450.59,0.00014746,2]
[394857400,1764024081742,150.0,0.00014981,2]
[394857403,1764024170393,1098.97,0.00014973,2]
[394857409,1764024179924,344.29,0.0001493,2]
[394857413,1764024188996,1845.58,0.0001493,2]
[394857414,1764024189027,10000.01,0.0001493,2]
[394857415,1764024189057,10000.01,0.0001493,2]
[394857416,1764024189087,10000.01,0.0001493,2]
[394857417,1764024189116,10000.01,0.0001493,2]
[394857418,1764024189145,242.69,0.0001493,2]
[394857426,1764024197555,166.66,0.00014184,2]
[394857427,1764024197765,166.66,0.00014482,2]
[394857451,1764024323858,10000.01,0.00014704,2]
[394857452,1764024323885,6734.94,0.00014704,2]
[394857541,1764024595136,158.55,0.00019178,30]
[394857544,1764024615493,999.0,0.00014571,3]
[394857554,1764024631914,-166.66,0.00014781,2]
[394857555,1764024631924,-195.0,0.00014783,2]
[394857556,1764024631933,-1704.28529364,0.00014791,2]
[394857558,1764024631944,-1218.86470636,0.00014791,2]
[394857559,1764024631953,-425.75425998,0.00014792,2]
[394857560,1764024631965,-208.72583231,0.00014792,2]
[394857561,1764024631975,-500.0,0.00015078,2]
[394857562,1764024631984,-166.66,0.00015079,2]
[394857563,1764024631993,-819.95419949,0.00015145,2]
[394857564,1764024632012,-830.0,0.00015145,2]
[394857565,1764024632023,-406.33173265,0.00015145,2]
[394857566,1764024632034,-394.30406786,0.00015145,2]
[394857567,1764024632043,-250.0,0.00015319,2]
[394857568,1764024632052,-136.41120289,0.0001537,2]
[394857569,1764024632071,-1063.58879711,0.0001537,2]
[394857570,1764024632081,-471.10181587,0.00015371,2]
[394857571,1764024632090,-300.0,0.00015371,2]
[394857572,1764024632100,-300.0,0.00015371,2]
[394857573,1764024632109,-1200.0,0.00015372,2]
[394857574,1764024632119,-1108.5711,0.00015373,2]
[394857575,1764024632127,-500.0,0.00015373,2]
[394857576,1764024632137,-500.0,0.00015373,2]
[394857577,1764024632146,-500.28924973,0.00015373,2]
[394857578,1764024632155,-500.0,0.00015373,2]
[394857579,1764024632163,-500.0,0.00015373,2]
[394857580,1764024632172,-498.423967,0.00015373,2]
[394857581,1764024632181,-500.0,0.00015373,2]
[394857582,1764024632190,-324.25332467,0.00015373,2]
[394857583,1764024632203,-175.74667533,0.00015373,2]
[394857584,1764024632212,-114.30975396,0.00015378,2]
[394857585,1764024632223,-52.35024604,0.00015378,2]
[394857586,1764024632232,-151.0,0.00015397,2]
[394857588,1764024632241,-120.09066721,0.00015399,2]
[394857590,1764024632251,-179.90933279,0.00015399,2]
[394857591,1764024632260,-152.33612108,0.00015399,2]
[394857593,1764024632270,-500.0,0.000154,2]
[394857594,1764024632279,-1000.0,0.000154,2]
[394857596,1764024632287,-8547.58342101,0.000154,2]
[394857599,1764024632298,-302.61183806,0.000154,2]
[394857601,1764024632309,-2262.11,0.000154,2]
[394857603,1764024632319,-5207.02539024,0.000154,2]
[394857605,1764024632330,-1613.9502996,0.000154,2]
[394857607,1764024632340,-4328.06566314,0.000154,2]
[394857610,1764024632351,-4674.0,0.000154,2]
[394857612,1764024632361,-2891.87960734,0.000154,2]
[394857614,1764024632372,-213841.14611815,0.000154,2]
[394857616,1764024632383,-16213.7964204,0.000154,2]
[394857618,1764024632394,-515.71559737,0.000154,2]
[394857621,1764024632404,-872.66531044,0.000154,2]
[394857623,1764024632415,-835.19021143,0.000154,2]
[394857624,1764024632425,-567.05475244,0.000154,2]
[394857625,1764024632435,-668.57669998,0.000154,2]
[394857626,1764024632446,-690.50269745,0.000154,2]
[394857628,1764024637870,-708.18114371,0.000154,2]
[394857629,1764024637882,-7461.73591038,0.000154,2]
[394857630,1764024637894,-946.28,0.000154,2]
[394857631,1764024637987,-263.56967797,0.000154,2]
[394857633,1764024638103,-373.57020428,0.000154,2]
[394857682,1764024640033,-1847.29706136,0.000154,2]
[394857683,1764024640108,-484367.49197525,0.000154,2]
[394857684,1764024640120,-500.0,0.00015473,2]
[394857685,1764024640129,-500.0,0.00015491,2]
[394857686,1764024640139,-500.0,0.00015491,2]
[394857687,1764024640148,-500.0,0.00015491,2]
[394857688,1764024640157,-500.0,0.00015491,2]
[394857689,1764024640167,-500.0,0.00015491,2]
[394857690,1764024640176,-500.0,0.00015491,2]
[394857691,1764024640186,-500.0,0.00015491,2]
[394857692,1764024640195,-500.0,0.00015491,2]
[394857693,1764024640204,-500.0,0.00015491,2]
[394857694,1764024640214,-500.0,0.00015491,2]
[394857695,1764024640223,-296.66311778,0.00015491,2]
[394857696,1764024640232,-500.0,0.00015491,2]
[394857697,1764024640242,-386.90211998,0.00015491,2]
[394857698,1764024640251,-151.0,0.00015491,2]
[394857699,1764024640260,-151.0,0.00015491,2]
[394857700,1764024640269,-151.0,0.00015491,2]
[394857701,1764024640278,-151.0,0.00015491,2]
[394857702,1764024640287,-151.0,0.00015491,2]
[394857703,1764024640296,-151.0,0.00015491,2]
[394857704,1764024640306,-151.0,0.00015491,2]
[394857705,1764024640315,-151.0,0.00015491,2]
[394857706,1764024640325,-151.0,0.00015491,2]
[394857707,1764024640335,-151.0,0.00015491,2]
[394857708,1764024640344,-178.87866124,0.00015491,2]
[394857709,1764024640354,-11315.9360857,0.00015492,2]
[394857710,1764024640363,-1287.08535652,0.00015499,2]
[394857711,1764024640372,-1107.00472776,0.00015499,2]
[394857712,1764024640382,-1000.0,0.00015499,2]
[394857713,1764024640391,-500.0,0.00015499,2]
[394857714,1764024640400,-171.276,0.00015499,2]
[394857715,1764024640409,-1481.688,0.00015499,2]
[394857716,1764024640419,-500.0,0.00015499,2]
[394857717,1764024640428,-500.0,0.00015499,2]
[394857718,1764024640438,-500.0,0.00015499,2]
[394857719,1764024640447,-500.0,0.00015499,2]
[394857720,1764024640461,-500.0,0.00015499,2]
[394857722,1764024640470,-500.0,0.00015499,2]
[394857723,1764024640480,-500.0,0.00015499,2]
[394857724,1764024640491,-500.0,0.00015499,2]
[394857725,1764024640500,-500.0,0.00015499,2]
[394857726,1764024640510,-500.0,0.00015499,2]
[394857727,1764024640519,-500.0,0.00015499,2]
[394857728,1764024640528,-500.0,0.00015499,2]
[394857729,1764024640538,-500.0,0.00015499,2]
[394857730,1764024640548,-500.0,0.00015499,2]
[394857731,1764024640558,-500.0,0.00015499,2]
[394857732,1764024640567,-500.0,0.00015499,2]
[394857733,1764024640576,-459.69697707,0.00015499,2]
[394857734,1764024640585,-500.0,0.00015499,2]
[394857735,1764024640595,-500.0,0.00015499,2]
[394857736,1764024640604,-263.75639361,0.00015499,2]
[394857737,1764024640613,-500.0,0.00015499,2]
[394857738,1764024640622,-500.0,0.00015499,2]
[394857739,1764024640632,-500.0,0.00015499,2]
[394857740,1764024640642,-500.0,0.00015499,2]
[394857741,1764024640658,-506.29940894,0.00015499,2]
[394857742,1764024640668,-500.0,0.00015499,2]
[394857743,1764024640678,-500.0,0.00015499,2]
[394857744,1764024640687,-500.0,0.00015499,2]
[394857745,1764024640696,-500.0,0.00015499,2]
[394857746,1764024640706,-151.0,0.00015596,2]
[394857747,1764024640718,-500.0,0.00015599,2]
[394857748,1764024640729,-500.0,0.00015599,2]
[394857749,1764024640739,-500.0,0.00015599,2]
[394857750,1764024640749,-500.0,0.00015599,2]
[394857751,1764024640759,-500.0,0.00015599,2]
[394857752,1764024640768,-500.0,0.00015599,2]
[394857753,1764024640778,-500.0,0.00015599,2]
[394857754,1764024640787,-500.0,0.00015599,2]
[394857755,1764024640797,-500.0,0.00015599,2]
[394857756,1764024640807,-530.31019318,0.00015599,2]
[394857757,1764024640817,-166.66,0.00015628,2]
[394857758,1764024640827,-200.0,0.00015642,2]
[394857759,1764024640837,-6436.3,0.00015658,2]
[394857760,1764024640850,-166.66,0.00015677,2]
[394857761,1764024640860,-1500.0,0.0001573,2]
[394857762,1764024640870,-500.0,0.00015973,2]
[394857763,1764024640879,-500.4051858,0.00015973,2]
[394857764,1764024640889,-500.0,0.00015973,2]
[394857765,1764024640899,-500.0,0.00015973,2]
[394857766,1764024640908,-305.87253345,0.00015973,2]
[394857767,1764024640918,-500.0,0.00015973,2]
[394857768,1764024640927,-500.0,0.00015973,2]
[394857769,1764024640937,-500.0,0.00015999,2]
[394857770,1764024640947,-500.0,0.00015999,2]
[394857771,1764024640957,-175328.39914427,0.00016,4]
[394857772,1764024640968,-2000.0,0.00016,2]
[394857773,1764024640977,-200.0,0.00016,2]
[394857774,1764024640987,-1000.0,0.00016021,2]
[394857775,1764024640996,-166.9902574,0.00016138,2]
[394857776,1764024641005,-166.66,0.00016144,2]
[394857777,1764024641015,-200.0,0.0001616,2]
[394857778,1764024641025,-37937.70623711,0.0001618,2]
[394857779,1764024641034,-45000.04105113,0.000162,5]
[394857780,1764024641280,-179.42,0.00016238,2]
[394857781,1764024641290,-300.0,0.00016259,2]
[394857782,1764024641300,-195.0,0.00016259,2]
[394857783,1764024641309,-323.33930456,0.00016259,2]
[394857784,1764024641318,-300.0,0.00016259,2]
[394857785,1764024641327,-195.0,0.00016259,2]
[394857786,1764024641336,-250.0,0.00016259,2]
[394857787,1764024641346,-250.0,0.00016259,2]
[394857788,1764024641355,-200.0,0.00016322,2]
[394857789,1764024641366,-627.90075,0.0001636,2]
[394857790,1764024641376,-627.90075,0.0001637,2]
[394857791,1764024641385,-627.90075,0.0001638,2]
[394857792,1764024641394,-627.90075,0.0001638,2]
[394857793,1764024641403,-627.90075,0.0001639,2]
[394857794,1764024641412,-627.90075,0.0001641,2]
[394857795,1764024641421,-224.98,0.00016438,2]
[394857796,1764024641430,-1458.0,0.00016438,2]
[394857797,1764024641439,-163.77,0.0001644,2]
[394857798,1764024641449,-200.0,0.00016485,2]
[394857799,1764024641459,-1010.85568218,0.00016521,2]
[394857800,1764024641469,-1000.0,0.00016521,2]
[394857801,1764024641478,-300.0,0.00016523,2]
[394857802,1764024641487,-166.82,0.00016613,2]
[394857803,1764024641496,-200.0,0.0001665,2]
[394857804,1764024641505,-166.66,0.0001666,2]
[394857805,1764024641515,-420.0,0.00016816,2]
[394857806,1764024641524,-1458.0,0.00016817,2]
[394857807,1764024641534,-152.33612108,0.000169,2]
[394857808,1764024641544,-1680.0,0.000169,2]
[394857809,1764024641554,-468.03471129,0.0001699,2]
[394857810,1764024641563,-300.0,0.00016994,2]
[394857811,1764024641572,-500.0,0.00016999,2]
[394857812,1764024641582,-500.0,0.00016999,2]
[394857813,1764024641591,-500.0,0.00016999,2]
[394857814,1764024641601,-416.17283293,0.00016999,2]
[394857815,1764024641610,-500.0,0.00016999,2]
[394857816,1764024641619,-160.11383642,0.00016999,2]
[394857817,1764024641629,-500.0,0.00016999,2]
[394857818,1764024641638,-525.63764191,0.00016999,2]
[394857819,1764024641651,-500.0,0.00016999,2]
[394857821,1764024641660,-500.0,0.00016999,2]
[394857822,1764024641669,-250.0,0.00017,2]
[394857823,1764024641679,-410486.5619738,0.00017,2]
[394857824,1764024641689,-151.0,0.00017,2]
[394857825,1764024641698,-151.0,0.00017,2]
[394857826,1764024641707,-151.0,0.00017,2]
[394857827,1764024641717,-151.0,0.00017,2]
[394857828,1764024641729,-151.0,0.00017,2]
[394857829,1764024641738,-151.0,0.00017,2]
[394857830,1764024641748,-151.0,0.00017,2]
[394857832,1764024641757,-1000.0,0.00017093,2]
[394857833,1764024641766,-179.42,0.00017141,2]
[394857834,1764024641775,-166.66,0.00017176,2]
[394857835,1764024641784,-2524.926631,0.00017457,2]
[394857836,1764024641793,-166.66,0.00017692,2]
[394857837,1764024641802,-203.94766494,0.00017824,2]
[394857838,1764024641812,-563.3872835,0.00017896,2]
[394857839,1764024641821,-186.07333406,0.000179,2]
[394857840,1764024641830,-1000.0,0.00017999,2]
[394857841,1764024641839,-1590950.66042492,0.00018,2]
[394857842,1764024641849,-1181.96310786,0.00018,2]
[394857843,1764024641858,-151.0,0.00018,2]
[394857844,1764024641867,-152.951844,0.00018,2]
[394857845,1764024641876,-151.0,0.00018,2]
[394857846,1764024641885,-269.0,0.00018,2]
[394857847,1764024641894,-151.0,0.00018,2]
[394857848,1764024641904,-155.093405,0.00018,2]
[394857849,1764024641913,-151.0,0.00018,2]
[394857850,1764024641923,-151.0,0.00018,2]
[394857851,1764024641932,-151.0,0.00018,2]
[394857852,1764024641942,-151.0,0.00018,2]
[394857853,1764024641951,-151.0,0.00018,2]
[394857854,1764024641961,-151.730275,0.00018,2]
[394857855,1764024641970,-151.0,0.00018,2]
[394857856,1764024641979,-151.0,0.00018,2]
[394857857,1764024641989,-151.0,0.00018,2]
[394857858,1764024641998,-151.0,0.00018,2]
[394857859,1764024642007,-151.0,0.00018,2]
[394857860,1764024642016,-151.0,0.00018,2]
[394857861,1764024642026,-151.0,0.00018,2]
[394857862,1764024642035,-151.0,0.00018,2]
[394857863,1764024642043,-179.42,0.00018043,2]
[394857864,1764024642053,-1000.0,0.00018082,2]
[394857865,1764024642062,-1766.69182015,0.000181,2]
[394857866,1764024642071,-166.66,0.00018208,2]
[394857867,1764024642080,-87853.71,0.00018356,2]
[394857868,1764024642089,-300.0,0.00018364,2]
[394857869,1764024642099,-587.0,0.00018398,2]
[394857870,1764024642108,-2000.0,0.000184,2]
[394857871,1764024642118,-2351.0,0.00018583,2]
[394857872,1764024642127,-6922.0,0.00018619,2]
[394857873,1764024642137,-166.82,0.0001869,2]
[394857874,1764024642146,-1000.0,0.0001876,2]
[394857875,1764024642156,-150.6,0.000188,2]
[394857876,1764024642166,-150.6,0.000188,2]
[394857877,1764024642175,-150.6,0.000188,2]
[394857878,1764024642185,-150.6,0.000188,2]
[394857879,1764024642194,-150.6,0.000188,2]
[394857880,1764024642203,-150.6,0.000188,2]
[394857881,1764024642213,-150.6,0.000188,2]
[394857882,1764024642222,-150.6,0.000188,2]
[394857883,1764024642231,-150.6,0.000188,2]
[394857884,1764024642241,-150.6,0.000188,2]
[394857885,1764024642250,-150.6,0.000188,2]
[394857886,1764024642259,-150.6,0.000188,2]
[394857887,1764024642269,-150.6,0.000188,2]
[394857888,1764024642278,-53025.0,0.000188,2]
[394857889,1764024642287,-179.42,0.00018945,2]
[394857890,1764024642296,-1000.0,0.00018992,2]
[394857891,1764024642305,-180.76074917,0.00019,2]
[394857892,1764024642314,-300.0,0.00019,2]
[394857893,1764024642324,-5132.56304945,0.00019,2]
[394857894,1764024642333,-265.81030064,0.00019,2]
[394857895,1764024642342,-1578.0,0.00019058,2]
[394857896,1764024642351,-150.6,0.0001909,2]
[394857897,1764024642361,-471.10181581,0.00019138,2]
[394857898,1764024642370,-1578.0,0.00019149,2]
[394857899,1764024642379,-1578.0,0.0001915,2]
[394857900,1764024642389,-421.02648754,0.00019166,2]
[394857901,1764024642398,-151.0,0.00019178,2]
[394857902,1764024642408,-151.0,0.00019178,2]
[394857903,1764024642417,-155.308666,0.00019178,2]
[394857904,1764024642426,-1578.0,0.00019251,2]
[394857905,1764024642436,-1578.0,0.00019436,2]
[394857906,1764024642445,-1000.0,0.00019438,2]
[394857907,1764024642455,-1578.0,0.00019499,2]
[394857908,1764024642465,-1578.0,0.00019796,2]
[394857909,1764024642475,-179.42,0.00019847,2]
[394857910,1764024642485,-1578.0,0.00019887,2]
[394857911,1764024642494,-4546.35865305,0.000199,3]
[394857912,1764024642504,-500.10175972,0.000199,2]
[394857913,1764024642513,-5521.0,0.000199,3]
[394857914,1764024642522,-46141.06,0.00019933,2]
[394857915,1764024642532,-1578.0,0.00019961,2]
[394857916,1764024642541,-468.03471129,0.0001999,2]
[394857917,1764024642551,-150.6,0.0001999,2]
[394857918,1764024642560,-150.6,0.0001999,2]
[394857919,1764024642570,-1578.0,0.00019996,2]
[394857920,1764024642579,-265020.18417885,0.0002,5]
[394857921,1764024642589,-5041.75253712,0.0002,4]
[394857922,1764024642598,-3950.0,0.0002,2]
[394857923,1764024642608,-1286.02110414,0.0002,2]
[394857924,1764024642617,-1038.03322399,0.0002,2]
[394857925,1764024642626,-2844.63774645,0.0002,2]
[394857926,1764024642636,-151.0,0.0002,2]
[394857927,1764024642647,-151.0,0.0002,2]
[394857928,1764024642657,-151.0,0.0002,2]
[394857929,1764024642666,-151.0,0.0002,2]
[394857930,1764024642676,-151.0,0.0002,2]
[394857931,1764024642687,-214.586564,0.0002,2]
[394857932,1764024642696,-151.0,0.0002,2]
[394857933,1764024642705,-151.0,0.0002,2]
[394857934,1764024642717,-151.0,0.0002,2]
[394857935,1764024642727,-295.97416,0.0002,2]
[394857936,1764024642737,-152.482923,0.0002,2]
[394857937,1764024642746,-151.0,0.0002,2]
[394857938,1764024642755,-151.0,0.0002,2]
[394857939,1764024642765,-151.0,0.0002,2]
[394857940,1764024642775,-200.411106,0.0002,2]
[394857941,1764024642784,-169.651907,0.0002,2]
[394857942,1764024642793,-200.0,0.00020051,2]
[394857943,1764024642802,-1578.0,0.00020086,2]
[394857944,1764024642811,-1578.0,0.00020093,2]
[394857945,1764024642821,-1000.0,0.00020116,2]
[394857946,1764024642830,-1578.0,0.00020126,2]
[394857947,1764024642840,-823.0,0.00020128,2]
[394857948,1764024642849,-1578.0,0.00020139,2]
[394857949,1764024642859,-345.59,0.00020145,2]
[394857950,1764024642868,-283.47,0.00020145,2]
[394857951,1764024642877,-305.12,0.00020145,2]
[394857952,1764024642886,-1594.24,0.00020145,2]
[394857953,1764024642895,-9999.99,0.00020145,2]
[394857954,1764024642904,-9999.99,0.00020145,2]
[394857955,1764024642914,-9999.99,0.00020145,2]
[394857956,1764024642923,-150.99,0.00020145,2]
[394857957,1764024642932,-9999.99,0.00020145,2]
[394857958,1764024642942,-307.99,0.00020145,2]
[394857959,1764024642951,-1196.69,0.00020147,2]
[394857960,1764024642960,-501.93,0.00020187,2]
[394857961,1764024642970,-1578.0,0.00020256,2]
[394857962,1764024642980,-1578.0,0.0002029,2]
[394857963,1764024642991,-1578.0,0.00020292,2]
[394857964,1764024643001,-469.13,0.00020331,2]
[394857965,1764024643010,-1578.0,0.00020332,2]
[394857966,1764024643020,-16898.96,0.0002038,2]
[394857967,1764024643029,-3292.0,0.00020433,2]
[394857968,1764024643038,-526.61,0.00020464,2]
[394857969,1764024643048,-1578.0,0.00020501,2]
[394857970,1764024643058,-190.67,0.00020548,2]
[394857971,1764024643067,-151.0,0.00020548,2]
[394857972,1764024643077,-1578.0,0.00020557,2]
[394857973,1764024643087,-1578.0,0.00020579,2]
[394857974,1764024643097,-1578.0,0.00020631,2]
[394857975,1764024643107,-9655.13,0.00020661,2]
[394857976,1764024643118,-150.6,0.00020699,2]
[394857977,1764024643127,-1578.0,0.00020709,2]
[394857978,1764024643136,-13916.7,0.00020721,2]
[394857979,1764024643145,-1578.0,0.00020722,2]
[394857980,1764024643154,-200.0,0.0002073,2]
[394857981,1764024643163,-179.42,0.00020749,2]
[394857982,1764024643172,-1578.0,0.00020758,2]
[394857983,1764024643181,-166.82,0.00020767,2]
[394857984,1764024643190,-318.11,0.00020769,2]
[394857985,1764024643200,-1000.0,0.00020795,2]
[394857986,1764024643209,-15996.91,0.00020798,2]
[394857987,1764024643218,-1000.0,0.00020891,2]
[394857988,1764024643228,-4560.07,0.00020948,2]
[394857989,1764024643237,-2910.24,0.0002095,2]
[394857990,1764024643246,-350.0,0.00021,2]
[394857991,1764024643255,-1184.92843742,0.00021,2]
[394857992,1764024643264,-195.58917678,0.00021,2]
[394857993,1764024643275,-1338.62,0.00021065,2]
[394857994,1764024643286,-5521.0,0.000211,5]
[394857995,1764024643296,-1000.0,0.00021458,7]
[394857996,1764024643305,-220.58613883,0.000215,2]
[394857997,1764024643314,-179.42,0.00021651,2]
[394857998,1764024643324,-5000.0,0.00021918,2]
[394857999,1764024643333,-151.86275817,0.00021918,2]
[394858000,1764024643342,-150.0,0.00021918,2]
[394858001,1764024643351,-150.0,0.00021918,2]
[394858002,1764024643362,-500.0,0.00021918,2]
[394858003,1764024643372,-500.0,0.00021918,2]
[394858004,1764024643382,-500.0,0.00021918,2]
[394858005,1764024643392,-537.2739343,0.00021918,2]
[394858006,1764024643402,-150.0,0.00021918,2]
[394858008,1764024643411,-150.0,0.00021918,2]
[394858009,1764024643420,-150.0,0.00021918,2]
[394858010,1764024643429,-150.0,0.00021918,2]
[394858011,1764024643438,-252.53085637,0.00021918,2]
[394858012,1764024643447,-272.56817401,0.00021918,2]
[394858013,1764024643457,-150.0,0.00021918,2]
[394858014,1764024643468,-150.0,0.00021918,2]
[394858015,1764024643478,-150.0,0.00021918,2]
[394858016,1764024643487,-185.67722968,0.0002197,2]
[394858017,1764024643497,-150.6,0.0002199,2]
[394858018,1764024643506,-4117.49448259,0.00022,2]
[394858019,1764024643515,-95831.01041649,0.00022,7]
[394858020,1764024643524,-160.97,0.00022,2]
[394858021,1764024643533,-6041.56,0.00022,7]
[394858022,1764024643542,-254.37812853,0.00022,2]
[394858024,1764024643551,-151.0,0.00022,2]
[394858026,1764024643561,-151.0,0.00022,2]
[394858028,1764024643570,-151.0,0.00022,2]
[394858030,1764024643579,-151.0,0.00022,2]
[394858033,1764024643588,-151.0,0.00022,2]
[394858035,1764024643596,-151.0,0.00022,2]
[394858036,1764024643606,-181.8,0.00022,2]
[394858037,1764024643615,-1152.0,0.0002202,2]
[394858038,1764024643624,-200.0,0.00022055,2]
[394858039,1764024643633,-200.0,0.00022055,2]
[394858040,1764024643642,-200.0,0.00022055,2]
[394858041,1764024643656,-248.05767948,0.00022055,2]
[394858042,1764024643665,-150.0,0.00022055,2]
[394858043,1764024643677,-150.0,0.00022055,2]
[394858045,1764024643686,-2000.0,0.000221,2]
[394858046,1764024643698,-150.0,0.00022192,2]
[394858047,1764024643708,-200.0,0.00022192,2]
[394858048,1764024643718,-150.0,0.00022329,2]
[394858049,1764024643728,-150.0,0.00022466,2]
[394858050,1764024643737,-4609.0,0.00022468,2]
[394858051,1764024643746,-179.42,0.00022553,2]
[394858052,1764024643755,-250.0,0.00022603,2]
[394858053,1764024643765,-1000.0,0.00022629,2]
[394858054,1764024643774,-151.611388,0.000227,2]
[394858055,1764024643784,-1000.0,0.0002279,2]
[394858056,1764024643794,-166.82,0.00022843,2]
[394858057,1764024643804,-1000.0,0.00022888,2]
[394858058,1764024643815,-1000.0,0.0002292,2]
[394858059,1764024643824,-1000.0,0.00022943,2]
[394858060,1764024643834,-1000.0,0.00022946,2]
[394858061,1764024643844,-400.0,0.00023,2]
[394858062,1764024643853,-1000.0,0.00023133,2]
[394858063,1764024643863,-1000.0,0.00023143,2]
[394858064,1764024643872,-1000.0,0.00023203,2]
[394858065,1764024643882,-1000.0,0.00023266,2]
[394858066,1764024643892,-1000.0,0.00023281,2]
[394858067,1764024643902,-1000.0,0.00023293,2]
[394858068,1764024643911,-300.0,0.00023294,2]
[394858069,1764024643920,-151.0,0.000233,7]
[394858070,1764024643930,-1000.0,0.00023302,2]
[394858071,1764024643939,-1000.0,0.00023312,2]
[394858072,1764024643949,-1000.0,0.00023427,2]
[394858073,1764024643958,-179.42,0.00023456,2]